[Event "Moscow Open-F 2019"]
[Site "Moscow"]
[Date "2019.01.31"]
[Round "7"]
[White "Thing, Bibek"]
[Black "Pischasov, Alexander"]
[Result "1-0"]
[ECO "B22"]
[WhiteElo "2264"]
[BlackElo "2022"]
[Annotator "ChessBase"]
[PlyCount "85"]
[EventDate "2019.01.26"]
[EventType "swiss"]
[EventCountry "RUS"]
[SourceTitle "playchess.com"]
[Source "ChessBase"]
[SourceQuality "1"]
[TimeControl "40/5400+30:1800+30"]

1. e4 {[%emt 0:08:34]} c5 {[%emt 0:00:00]} 2. c3 {[%emt 0:02:00]} e6 {[%emt 0:03:22]} 3. Nf3 {[%emt 0:00:32]} d5 {[%emt 0:01:46]} 4. exd5 {[%emt 0:00:20]} Qxd5 {[%emt 0:01:15]} 5. d4 {[%emt 0:00:14]} cxd4 {[%emt 0:01:06]} 6. cxd4 {[%emt 0:00:13]} Nf6 {[%emt 0:00:45]} 7. Bd3 {[%emt 0:02:07]} Nc6 {[%emt 0:02:24]} 8. O-O {[%emt 0:01:36]} Be7 {[%emt 0:01:20]} 9. Nc3 {[%emt 0:00:09]} Qd8 {[%emt 0:01:29]} 10. Qe2 {[%emt 0:01:21]} O-O {[%emt 0:01:49]} 11. Rd1 {[%emt 0:00:55]} Nb4 {[%emt 0:04:25]} 12. Ne5 {[%emt 0:03:31]} Bd7 {[%emt 0:26:34]} 13. Nxd7 {[%emt 0:04:21]} Qxd7 {[%emt 0:01:13]} 14. Bb5 Qd8 {[%emt 0:04:40]} 15. h4 {[%emt 0:04:54]} Rc8 {[%emt 0:05:59]} 16. h5 {[%emt 0:00:47]} Nbd5 {[%emt 0:03:02]} 17. h6 {[%emt 0:02:54]} g6 {[%emt 0:04:05]} 18. Bc4 {[%emt 0:04:50]} Nxc3 {[%emt 0:03:51]} 19. bxc3 {[%emt 0:01:35]} Nd5 {[%emt 0:01:24]} 20. Bd2 {[%emt 0:05:13]} Qd6 {[%emt 0:09:13]} 21. Rac1 {[%emt 0:08:24]} Nf4 {[%emt 0:02:59]} 22. Qg4 {[%emt 0:17:09]} Rxc4 {[%emt 0:01:11]} 23. Bxf4 {[%emt 0:02:53]} Qd5 {[%emt 0:00:06]} 24. Re1 {[%emt 0:00:53]} Rfc8 {[%emt 0:01:05]} 25. Re5 {[%emt 0:01:23]} Qd8 {[%emt 0:01:46]} 26. Bd2 {[%emt 0:07:45]} Bf6 {[%emt 0:00:54]} 27. Re4 {[%emt 0:01:30]} Qd5 {[%emt 0:01:26]} 28. Rce1 {[%emt 0:00:54]} b5 {[%emt 0:01:38]} 29. Rf4 {[%emt 0:02:49]} Bh8 {[%emt 0:00:20]} 30. a3 {[%emt 0:02:26]} Ra4 {[%emt 0:00:49]} 31. Qh4 {[%emt 0:02:59]} Qd7 {[%emt 0:00:57]} 32. Rf3 {[%emt 0:01:25]} e5 {[%emt 0:02:35]} 33. Rfe3 {[%emt 0:00:52]} exd4 {[%emt 0:03:53]} 34. Qh3 {[%emt 0:00:47]} f5 {[%emt 0:00:58]} 35. Re7 {[%emt 0:00:46]} Qc6 {[%emt 0:00:19]} 36. R1e6 {[%emt 0:01:22]} Qc5 {[%emt 0:01:21]} 37. Qg3 {[%emt 0:01:50]} dxc3 {[%emt 0:03:19]} 38. Rxg6+ {[%emt 0:00:25]} Kf8 {[%emt 0:00:01]} 39. Rxh7 Qd5 {[%emt 0:01:27]} 40. Rxh8+ {[%emt 0:00:37]} Kf7 {[%emt 0:01:10]} 41. Rh7+ {[%emt 0:30:09]} Kf8 {[%emt 0:30:09]} 42. Rg8+ {[%emt 0:00:12]} Qxg8 {[%emt 0:00:10]} 43. Qd6+ 1-0

[Event "Moscow Open-F 2019"]
[Site "Moscow"]
[Date "2019.01.31"]
[Round "7"]
[White "Teiitbaev, Aktilek"]
[Black "Ufimtsev, Egor"]
[Result "1-0"]
[ECO "B30"]
[WhiteElo "2229"]
[BlackElo "2160"]
[Annotator "NA"]
[PlyCount "207"]
[EventDate "2019.01.26"]
[EventType "swiss"]
[EventCountry "RUS"]
[SourceTitle "playchess.com"]
[Source "ChessBase"]
[SourceQuality "1"]
[TimeControl "40/5400+30:1800+30"]

1. e4 {[%emt 0:00:00]} c5 {[%emt 0:01:18]} 2. Nf3 {[%emt 0:00:05]} Nc6 {[%emt 0:00:02]} 3. Bb5 {[%emt 0:01:11]} e6 {[%emt 0:00:10]} 4. O-O {[%emt 0:00:23]} Nge7 {[%emt 0:00:35]} 5. Re1 {[%emt 0:01:07]} a6 {[%emt 0:00:37]} 6. Bf1 {[%emt 0:00:22]} d5 {[%emt 0:03:33]} 7. exd5 {[%emt 0:01:41]} Nxd5 {[%emt 0:00:37]} 8. d4 {[%emt 0:00:19]} cxd4 {[%emt 0:23:42]} 9. Nxd4 {[%emt 0:02:28]} Ndb4 {[%emt 0:08:51] B30: Sicilian: 2...Nc6 3 Bb5, lines without ...g6} 10. Nxc6 {[%emt 0:13:03]} Qxd1 {[%emt 0:00:15]} 11. Rxd1 {[%emt 0:00:04]} Nxc6 {[%emt 0:00:04]} (11... bxc6 12. Na3 Bc5 13. Be3 Bxe3 14. fxe3 Ke7 15. Nc4 c5 16. c3 Nc6 17. Nb6 {½-½ (29) Ferreira,J (2499)-Istratescu,A (2589) Belgium 2018}) 12. Be3 {[%emt 0:01:31]} Be7 {[%emt 0:17:43]} 13. Nc3 {[%emt 0:05:33]} O-O {[%emt 0:00:05]} 14. Na4 $146 {[%emt 0:09:35]} ({Predecessor:} 14. Ne4 Nb4 15. Rd2 b5 16. Bc5 Bxc5 17. Nxc5 {½-½ (41) Cunningham,P-Williams,H Wales 1981}) 14... e5 {[%emt 0:00:23]} 15. Nb6 {[%emt 0:00:05]} Rb8 {[%emt 0:00:04]} 16. c3 {[%emt 0:01:53]} Be6 {[%emt 0:06:08]} 17. Nd7 {[%emt 0:02:05]} Bxd7 $1 {[%emt 0:00:05]} 18. Rxd7 {[%emt 0:00:02]} Rfd8 {[%emt 0:00:15]} 19. Rad1 {[%emt 0:00:34]} Kf8 {[%emt 0:02:14]} 20. f3 {[%emt 0:02:46]} Ke8 {[%emt 0:01:31]} 21. Rxd8+ {[%emt 0:00:06]} Rxd8 {[%emt 0:00:03]} 22. Rxd8+ {[%emt 0:00:12]} Nxd8 {[%emt 0:00:15]} 23. Bc4 {[%emt 0:01:37]} Kd7 {[%emt 0:04:21]} 24. Kf2 {[%emt 0:01:15]} Ne6 {[%emt 0:00:28]} 25. b4 {[%emt 0:05:21]} f5 {[%emt 0:02:29]} 26. g3 {[%emt 0:03:21]} Bf6 {[%emt 0:02:59]} 27. Bd5 {[%emt 0:02:30]} Nd8 {[%emt 0:00:53]} 28. Bb6 {[%emt 0:16:56]} e4 {[%emt 0:09:21]} 29. fxe4 {[%emt 0:06:57]} Bxc3 {[%emt 0:00:59]} 30. a3 {[%emt 0:00:39]} fxe4 {[%emt 0:07:04]} 31. Bxe4 {[%emt 0:00:07]} Bb2 {[%emt 0:01:42]} 32. a4 {[%emt 0:02:15]} Nc6 {[%emt 0:00:11]} 33. b5 {[%emt 0:01:57]} axb5 {[%emt 0:00:03]} 34. axb5 {[%emt 0:00:03]} Bd4+ {[%emt 0:03:22]} 35. Bxd4 {[%emt 0:00:06]} Nxd4 {[%emt 0:00:02]} 36. b6 {[%emt 0:00:41]} Kd6 {[%emt 0:00:04]} 37. Bxb7 {[%emt 0:04:39]} Kc5 {[%emt 0:00:03]} 38. Ke3 {[%emt 0:00:29]} Nc2+ {[%emt 0:04:04]} 39. Kf4 {[%emt 0:00:45]} Kxb6 {[%emt 0:00:04]} 40. Be4 {[%emt 0:00:06]} Nd4 {[%emt 0:01:23]} 41. Bxh7 {[%emt 0:32:07]} Kc5 {[%emt 0:30:40]} 42. h4 {[%emt 0:04:11]} Kd6 {[%emt 0:00:11]} 43. g4 {[%emt 0:03:29]} Ke7 {[%emt 0:00:43]} 44. Bg8 {[%emt 0:02:18]} g6 {[%emt 0:01:34]} 45. Ke4 {[%emt 0:03:35]} Nc2 {[%emt 0:00:09]} 46. Bb3 {[%emt 0:00:32]} Ne1 {[%emt 0:00:07] [#]} 47. Kf4 $1 {[%emt 0:02:30]} Kf6 {[%emt 0:00:14]} 48. Bd5 {[%emt 0:00:32]} Nd3+ {[%emt 0:00:10]} 49. Ke4 {[%emt 0:00:33]} Nf2+ {[%emt 0:00:25]} 50. Kf3 {[%emt 0:00:08]} Nd3 {[%emt 0:00:41]} 51. g5+ {[%emt 0:00:12]} Kg7 {[%emt 0:00:06]} 52. Be4 {[%emt 0:00:23]} Ne5+ {[%emt 0:00:35]} 53. Kf4 {[%emt 0:00:03]} Nf7 {[%emt 0:00:20]} 54. Bd3 {[%emt 0:00:16]} Nd6 {[%emt 0:01:39]} 55. Ke5 {[%emt 0:00:17]} Nf7+ {[%emt 0:00:08]} 56. Kd5 {[%emt 0:00:13]} Nd8 {[%emt 0:00:23]} 57. Ba6 {[%emt 0:00:54]} Nf7 {[%emt 0:01:16]} 58. Bb7 {[%emt 0:00:11]} (58. Bc4 $18 {is more deadly.}) 58... Nd8 {[%emt 0:00:08]} 59. Bc6 {[%emt 0:00:38]} Kf7 {[%emt 0:00:13]} 60. Bd7 {[%emt 0:00:33]} Ke7 {[%emt 0:01:34]} 61. Ba4 {[%emt 0:01:49]} Ne6 {[%emt 0:00:33]} 62. Ke5 {[%emt 0:01:04]} Nc7 {[%emt 0:00:16]} 63. Bc2 {[%emt 0:00:46]} Kf7 {[%emt 0:00:03]} 64. Bd3 {[%emt 0:00:12]} Ne8 {[%emt 0:00:34]} 65. Bc4+ {[%emt 0:00:25]} Ke7 {[%emt 0:00:07]} 66. Bb5 {[%emt 0:00:50]} Ng7 {[%emt 0:00:09]} 67. Bd3 {[%emt 0:00:16]} Kf7 {[%emt 0:00:03]} 68. Bc4+ {[%emt 0:00:39]} Ke7 {[%emt 0:00:03]} 69. Be2 {[%emt 0:00:12]} Kf7 {[%emt 0:00:44]} 70. Bf3 {[%emt 0:00:43]} Ke7 {[%emt 0:00:14]} 71. Bd5 {[%emt 0:00:25]} Ne8 {[%emt 0:00:58]} 72. Be4 {[%emt 0:00:49]} Kf7 {[%emt 0:00:05]} 73. Bd3 {[%emt 0:00:12]} (73. Bb1 $16) 73... Ng7 {[%emt 0:00:10]} 74. Bb5 {[%emt 0:00:45]} Ke7 {[%emt 0:00:16]} 75. Bc4 {[%emt 0:00:10]} Ne8 {[%emt 0:00:25]} 76. Be2 {[%emt 0:00:45]} Ng7 {[%emt 0:00:23]} 77. Bf3 {[%emt 0:00:30]} Ne8 {[%emt 0:00:11]} 78. Kf4 {[%emt 0:00:39]} Ng7 {[%emt 0:00:27]} 79. Be4 {[%emt 0:00:16]} Kf7 {[%emt 0:00:04]} 80. Bc6 {[%emt 0:00:15]} Nh5+ {[%emt 0:00:15]} 81. Kg4 {[%emt 0:00:04]} Ng7 {[%emt 0:00:12]} 82. Bd5+ {[%emt 0:00:06]} Ke7 {[%emt 0:00:06]} 83. Bg8 {[%emt 0:00:14]} Kf8 {[%emt 0:00:14]} 84. Bc4 {[%emt 0:00:46]} Ke7 {[%emt 0:00:05]} 85. Kf4 {[%emt 0:00:43]} Nh5+ {[%emt 0:00:10]} 86. Ke5 {[%emt 0:00:03]} Ng7 {[%emt 0:00:13]} 87. Bd3 {[%emt 0:00:03]} Kf7 {[%emt 0:00:05]} 88. Kd6 {[%emt 0:00:08]} Nh5 {[%emt 0:01:14]} 89. Be4 {[%emt 0:00:40]} Nf4 {[%emt 0:00:23]} 90. Kd7 {[%emt 0:00:37]} Kf8 {[%emt 0:00:53]} 91. Kd6 {[%emt 0:00:35]} Kf7 {[%emt 0:00:06]} 92. Bd5+ {[%emt 0:00:03]} Kg7 {[%emt 0:00:18]} 93. Bf3 {[%emt 0:00:27]} Kf7 {[%emt 0:00:18]} 94. Ke5 {[%emt 0:00:19]} Nd3+ {[%emt 0:00:08]} 95. Kd4 $1 {[%emt 0:00:15]} Nf4 {[%emt 0:00:08]} 96. Ke3 $11 {[%emt 0:00:43]} Ne6 {[%emt 0:00:48]} 97. Bd5 {[%emt 0:00:06]} Ke7 {[%emt 0:00:01]} 98. Bxe6 {[%emt 0:00:53]} Kxe6 {[%emt 0:00:04]} 99. Kf4 {[%emt 0:01:06]} Kd6 {[%emt 0:00:05]} 100. Kg4 {[%emt 0:00:36]} Ke6 {[%emt 0:00:13]} 101. h5 {[%emt 0:00:04]} gxh5+ {[%emt 0:00:09]} 102. Kxh5 {[%emt 0:00:01]} Kf7 {[%emt 0:00:05]} 103. Kh6 {[%emt 0:00:28]} Kg8 {[%emt 0:00:03]} 104. Kg6 {[%emt 0:00:04]} 1-0

[Event "Moscow Open-F 2019"]
[Site "Moscow"]
[Date "2019.01.31"]
[Round "7"]
[White "Mamatov, Melis"]
[Black "Dulguun Altankhuyag"]
[Result "1-0"]
[ECO "C55"]
[WhiteElo "2203"]
[BlackElo "1681"]
[Annotator "NA"]
[PlyCount "81"]
[EventDate "2019.01.26"]
[EventType "swiss"]
[EventCountry "RUS"]
[SourceTitle "playchess.com"]
[Source "ChessBase"]
[SourceQuality "1"]
[TimeControl "40/5400+30:1800+30"]

{[%evp 8,77,85,32,28,38,23,25,44,38,36,18,16,12,21,19,10,0,32767,32767,54,29,52,-7,32767,32767,32767,-5,32,31,31,33,73,32767,116,112,113,112,170,167,32767,162,255,32767,32767,170,140,155,209,214,225,215,264,32767,356,353,32767,32767,32767,276,329,285,384,32767,32767,249,278,314,411,502,495,550]} 1. e4 {[%emt 0:20:44]} e5 {[%emt 0:00:00]} 2. Nf3 {[%emt 0:00:04]} Nc6 {[%emt 0:00:00]} 3. Bc4 {[%emt 0:00:07]} Nf6 {[%emt 0:00:00]} 4. d3 {[%emt 0:01:17]} d6 {[%emt 0:00:00]} 5. c3 {[%emt 0:00:44]} h6 {[%emt 0:00:00]} 6. O-O {[%emt 0:04:38] LiveBook: 579 Games} g5 {[%emt 0:00:00]} 7. b4 {[%emt 0:04:21]} g4 {[%emt 0:00:45]} 8. Ne1 {[%emt 0:01:43]} Bg7 {[%emt 0:00:40]} 9. Qe2 {[%emt 0:04:48]} Ne7 {[%emt 0:02:24]} 10. f4 {[%emt 0:01:16]} exf4 {[%emt 0:03:13]} 11. Bxf4 {[%emt 0:00:34]} Ng6 {[%emt 0:00:05]} 12. e5 {[%emt 0:04:57]} Qe7 {[%emt 0:00:06]} 13. d4 {[%emt 0:00:14]} dxe5 {[%emt 0:07:44]} 14. Bxe5 {[%emt 0:08:12]} O-O {[%emt 0:00:28]} 15. Bxf6 {[%emt 0:00:57]} Bxf6 {[%emt 0:00:05]} 16. Qxe7 {[%emt 0:00:10]} Bxe7 {[%emt 0:00:02]} 17. Nd3 {[%emt 0:00:27]} Bd6 {[%emt 0:00:12]} 18. Nd2 {[%emt 0:03:36]} Kg7 {[%emt 0:01:24]} 19. Ne4 {[%emt 0:06:28]} Be7 {[%emt 0:00:11]} 20. Rae1 {[%emt 0:02:19]} b6 {[%emt 0:02:16]} 21. Ng3 {[%emt 0:02:19]} f5 {[%emt 0:06:22]} 22. Nf4 {[%emt 0:02:47]} Bd6 {[%emt 0:02:39]} (22... Bh4 $16) 23. Ngh5+ {[%emt 0:06:08]} Kh7 {[%emt 0:01:02]} 24. Nd5 {[%emt 0:02:21]} Nh8 {[%emt 0:03:11]} (24... Rb8 $16 25. g3 Kh8) 25. Bd3 {[%emt 0:05:16]} Kg6 {[%emt 0:00:22]} 26. Nhf4+ {[%emt 0:01:40]} Kg5 {[%emt 0:00:33]} 27. g3 {[%emt 0:05:31]} Bd7 {[%emt 0:00:45]} 28. Ne6+ {[%emt 0:01:04]} Bxe6 {[%emt 0:00:05]} 29. Rxe6 {[%emt 0:00:02]} a5 {[%emt 0:00:50]} 30. b5 {[%emt 0:00:22]} h5 {[%emt 0:01:40]} 31. Nxb6 {[%emt 0:00:06]} Rad8 {[%emt 0:02:41]} 32. Nc4 {[%emt 0:00:24]} Ng6 {[%emt 0:00:30]} 33. Ne3 {[%emt 0:00:38]} Ne7 {[%emt 0:02:30]} 34. Kg2 {[%emt 0:04:15]} f4 {[%emt 0:00:13]} 35. gxf4+ {[%emt 0:00:22]} Rxf4 {[%emt 0:00:01]} 36. Rxf4 {[%emt 0:01:17]} Kxf4 {[%emt 0:00:01]} 37. c4 {[%emt 0:00:46]} Bb4 {[%emt 0:00:46]} 38. Nc2 {[%emt 0:01:53]} Rd7 {[%emt 0:01:13]} 39. c5 $18 {[%emt 0:01:20]} Bxc5 {[%emt 0:00:13]} 40. Re4+ {[%emt 0:00:01]} Kg5 {[%emt 0:00:04]} 41. Re5+ {[%emt 0:30:03]} 1-0

[Event "Moscow Open-F 2019"]
[Site "Moscow"]
[Date "2019.01.31"]
[Round "7"]
[White "Badalyan, Shavarsh"]
[Black "Tekeyev, Zaur"]
[Result "0-1"]
[ECO "A48"]
[WhiteElo "2198"]
[BlackElo "2392"]
[Annotator "NA"]
[PlyCount "110"]
[EventDate "2019.01.26"]
[EventType "swiss"]
[EventCountry "RUS"]
[SourceTitle "playchess.com"]
[Source "ChessBase"]
[SourceQuality "1"]
[TimeControl "40/5400+30:1800+30"]

1. d4 {[%emt 0:00:00]} Nf6 {[%emt 0:09:39]} 2. Nf3 {[%emt 0:00:00]} g6 {[%emt 0:00:51]} 3. Bg5 {[%emt 0:00:06]} Bg7 {[%emt 0:00:12]} 4. Nbd2 {[%emt 0:00:23]} O-O {[%emt 0:01:02]} 5. c3 {[%emt 0:00:21]} h6 {[%emt 0:01:53]} 6. Bh4 {[%emt 0:01:04]} d6 {[%emt 0:00:09]} 7. e4 {[%emt 0:01:04]} c5 {[%emt 0:00:09]} 8. dxc5 {[%emt 0:01:18]} dxc5 {[%emt 0:00:01]} 9. Be2 {[%emt 0:00:42]} Nc6 {[%emt 0:00:34]} 10. O-O {[%emt 0:00:28]} Nh5 {[%emt 0:00:40]} 11. Re1 {[%emt 0:02:48]} Nf4 {[%emt 0:08:34]} 12. Bf1 {[%emt 0:02:21]} Nh5 {[%emt 0:13:22]} 13. Nc4 {[%emt 0:10:37]} Bg4 {[%emt 0:01:57]} 14. Be2 {[%emt 0:07:33]} Nf4 {[%emt 0:03:48]} 15. Ne3 {[%emt 0:00:55]} Qxd1 {[%emt 0:07:24]} 16. Raxd1 {[%emt 0:10:14]} Nxe2+ {[%emt 0:11:14]} 17. Rxe2 {[%emt 0:03:29]} Bxf3 {[%emt 0:01:14]} 18. gxf3 {[%emt 0:00:05]} e6 {[%emt 0:00:41]} 19. Bg3 {[%emt 0:05:03]} b5 {[%emt 0:04:50]} 20. Bd6 {[%emt 0:03:56]} Rfc8 {[%emt 0:02:45]} 21. Bxc5 {[%emt 0:02:59]} Ne5 {[%emt 0:00:50]} 22. Bd4 {[%emt 0:05:00]} Nxf3+ {[%emt 0:00:11]} 23. Kg2 {[%emt 0:00:05]} Nh4+ {[%emt 0:01:49]} 24. Kg3 {[%emt 0:01:10]} g5 {[%emt 0:00:01]} 25. Bxg7 {[%emt 0:03:32]} Kxg7 {[%emt 0:00:35]} 26. Rd7 {[%emt 0:02:05]} Ng6 {[%emt 0:07:54]} 27. Red2 {[%emt 0:01:32]} h5 {[%emt 0:01:25]} 28. Rb7 {[%emt 0:01:44]} Rcb8 {[%emt 0:02:30]} 29. Rdd7 {[%emt 0:04:10]} Rxb7 {[%emt 0:00:01]} 30. Rxb7 {[%emt 0:00:06]} a6 {[%emt 0:00:16]} 31. Nc2 {[%emt 0:02:25]} Kf6 {[%emt 0:01:10]} 32. Nd4 {[%emt 0:00:49]} Ne5 {[%emt 0:00:28]} 33. f3 {[%emt 0:01:57]} h4+ {[%emt 0:04:48]} 34. Kg2 {[%emt 0:01:02]} Nd3 {[%emt 0:00:53]} 35. b3 {[%emt 0:00:45]} Nc1 {[%emt 0:00:04]} 36. a4 {[%emt 0:01:42]} bxa4 {[%emt 0:00:01]} 37. bxa4 {[%emt 0:00:06]} Rc8 {[%emt 0:00:03]} 38. Rb6 {[%emt 0:03:02]} Rxc3 {[%emt 0:00:01]} 39. Rc6 {[%emt 0:00:30]} Rxc6 {[%emt 0:06:45]} 40. Nxc6 {[%emt 0:00:04]} Nd3 {[%emt 0:01:07]} 41. Kh3 {[%emt 0:31:22]} Ne5 {[%emt 0:31:20]} 42. Nd4 {[%emt 0:01:53]} Kg6 {[%emt 0:03:20]} 43. a5 {[%emt 0:06:23]} Kh5 {[%emt 0:01:48]} 44. Kg2 {[%emt 0:00:56]} g4 {[%emt 0:00:16]} 45. f4 {[%emt 0:00:14]} Nd3 {[%emt 0:00:42]} 46. f5 {[%emt 0:00:16]} (46. Ne2 $142 Ne1+ 47. Kh1) 46... e5 {[%emt 0:00:47]} 47. Nc6 {[%emt 0:00:22]} Kg5 {[%emt 0:00:24]} 48. Nd8 {[%emt 0:00:45]} Kf6 {[%emt 0:01:28]} 49. Nc6 {[%emt 0:00:10]} Nc5 {[%emt 0:00:26]} 50. Nb4 {[%emt 0:00:35]} Kg5 {[%emt 0:00:13]} 51. h3 {[%emt 0:00:48]} Kf4 {[%emt 0:01:10]} 52. hxg4 {[%emt 0:00:06]} Kxg4 {[%emt 0:00:05]} 53. f6 {[%emt 0:00:18]} Kf4 {[%emt 0:01:32]} 54. Kh3 {[%emt 0:00:08]} Kxe4 $19 {[%emt 0:00:13]} 55. Kxh4 {[%emt 0:00:06]} Kf5 {[%emt 0:00:08]} 0-1

[Event "Moscow Open-F 2019"]
[Site "Moscow"]
[Date "2019.01.31"]
[Round "7"]
[White "Oguzov, Shamil"]
[Black "Kovalev, Egor"]
[Result "0-1"]
[ECO "B47"]
[WhiteElo "2196"]
[BlackElo "2234"]
[Annotator "NA"]
[PlyCount "80"]
[EventDate "2019.01.26"]
[EventType "swiss"]
[EventCountry "RUS"]
[SourceTitle "playchess.com"]
[Source "ChessBase"]
[SourceQuality "1"]
[TimeControl "40/5400+30:1800+30"]

1. e4 {[%emt 0:01:09]} c5 {[%emt 0:45:23]} 2. Nf3 {[%emt 0:00:08]} Nc6 {[%emt 0:00:22]} 3. d4 {[%emt 0:00:06]} cxd4 {[%emt 0:00:04]} 4. Nxd4 {[%emt 0:00:04]} Qc7 {[%emt 0:00:03]} 5. Nc3 {[%emt 0:00:07]} e6 $1 {[%emt 0:00:14]} 6. g3 {[%emt 0:00:10]} a6 {[%emt 0:01:17]} 7. Bg2 {[%emt 0:00:19]} Nf6 {[%emt 0:00:08]} 8. O-O {[%emt 0:00:14]} Nxd4 {[%emt 0:01:53]} 9. Qxd4 {[%emt 0:00:10]} Bc5 {[%emt 0:00:07]} 10. Bf4 {[%emt 0:02:53]} d6 {[%emt 0:13:13]} 11. Qd3 {[%emt 0:02:23]} (11. Qd2 $14) 11... h6 {[%emt 0:00:06]} 12. Rad1 {[%emt 0:04:48]} e5 {[%emt 0:00:31]} 13. Be3 {[%emt 0:05:45]} Bg4 {[%emt 0:06:54]} 14. Rd2 {[%emt 0:14:24]} O-O {[%emt 0:02:18]} 15. h3 {[%emt 0:12:48]} Be6 {[%emt 0:01:58]} 16. Bxc5 {[%emt 0:00:47]} dxc5 {[%emt 0:00:01]} 17. Rfd1 {[%emt 0:02:29]} b5 {[%emt 0:07:05]} 18. a3 {[%emt 0:06:26]} Rfc8 {[%emt 0:01:45]} 19. Qe3 {[%emt 0:01:21]} b4 {[%emt 0:01:27]} 20. Nd5 {[%emt 0:02:19]} Bxd5 $1 {[%emt 0:00:03]} 21. exd5 {[%emt 0:00:05]} Qd6 {[%emt 0:00:09]} 22. Re2 {[%emt 0:04:05]} Re8 {[%emt 0:00:01]} 23. c4 {[%emt 0:05:42]} a5 {[%emt 0:01:38]} 24. Ree1 {[%emt 0:05:24]} Rab8 {[%emt 0:00:37]} 25. Ra1 {[%emt 0:03:07]} a4 {[%emt 0:00:48]} 26. axb4 {[%emt 0:01:38]} Rxb4 {[%emt 0:00:13]} 27. Qc3 {[%emt 0:01:16]} Nd7 {[%emt 0:01:22]} 28. Ra3 {[%emt 0:01:28]} Reb8 {[%emt 0:01:36]} 29. Rea1 {[%emt 0:01:31]} Nb6 {[%emt 0:05:31]} 30. Bf1 {[%emt 0:00:20]} e4 {[%emt 0:00:58]} 31. Re1 {[%emt 0:06:59]} f5 {[%emt 0:00:18]} 32. g4 {[%emt 0:01:57]} g6 {[%emt 0:00:00]} 33. Qc1 {[%emt 0:03:45]} Kh7 {[%emt 0:00:58]} 34. f3 {[%emt 0:00:55]} Qg3+ {[%emt 0:00:36]} 35. Kh1 {[%emt 0:05:23]} Nxc4 {[%emt 0:00:44]} 36. Bxc4 {[%emt 0:01:58]} Rxc4 {[%emt 0:00:02]} 37. Qd2 {[%emt 0:07:07]} Rd4 {[%emt 0:00:01]} 38. fxe4 {[%emt 0:01:19]} Qxa3 {[%emt 0:00:09]} 39. Qh2 $19 {[%emt 0:00:33]} Qf3+ {[%emt 0:01:10]} 40. Kg1 {[%emt 0:00:16]} f4 {[%emt 0:00:15]} 0-1

[Event "Moscow Open-F 2019"]
[Site "Moscow"]
[Date "2019.01.31"]
[Round "7"]
[White "Antonov, Andrey P."]
[Black "Velichko, Arseny"]
[Result "1/2-1/2"]
[ECO "C01"]
[WhiteElo "2150"]
[BlackElo "2223"]
[Annotator "NA"]
[PlyCount "137"]
[EventDate "2019.01.26"]
[EventType "swiss"]
[EventCountry "RUS"]
[SourceTitle "playchess.com"]
[Source "ChessBase"]
[SourceQuality "1"]
[TimeControl "40/5400+30:1800+30"]

1. e4 {[%emt 0:00:00]} e6 {[%emt 0:08:53]} 2. d4 {[%emt 0:00:00]} d5 {[%emt 0:00:05]} 3. exd5 {[%emt 0:00:00]} exd5 {[%emt 0:00:04]} 4. Nf3 {[%emt 0:00:00]} Bd6 {[%emt 0:00:04]} 5. c4 {[%emt 0:00:16]} dxc4 {[%emt 0:00:08]} 6. Bxc4 {[%emt 0:00:09]} Nf6 {[%emt 0:00:04]} 7. Qe2+ {[%emt 0:00:20] D20: Queen's Gambit Accepted: 3 e3 and 3 e4} Qe7 {[%emt 0:00:33]} 8. Qxe7+ {[%emt 0:00:06]} Bxe7 {[%emt 0:00:32]} 9. O-O {[%emt 0:06:53]} O-O {[%emt 0:00:34]} 10. Nc3 {[%emt 0:00:02]} (10. Re1 Bd6 11. Nc3 a6 12. Bg5 Nbd7 13. a4 h6 14. Bh4 g5 15. Bg3 Kg7 16. Bb3 Re8 17. Ne5 Re7 {½-½ (17) Li,C (2724)-Alekseenko,K (2625) Qinhuangdao 2018}) 10... c6 {[%emt 0:05:31]} 11. Re1 {[%emt 0:01:38]} Bd6 {[%emt 0:00:19]} 12. Bg5 {[%emt 0:00:03]} Nbd7 {[%emt 0:03:11]} 13. Bb3 {[%emt 0:10:19]} h6 {[%emt 0:01:39]} 14. Bh4 {[%emt 0:01:03]} a5 $146 {[%emt 0:17:32]} ({Predecessor:} 14... b6) 15. Rad1 {[%emt 0:10:17]} g5 {[%emt 0:04:52]} 16. Bg3 {[%emt 0:04:18]} Bxg3 {[%emt 0:05:00]} 17. hxg3 {[%emt 0:00:16]} Nb6 {[%emt 0:00:13]} 18. a4 {[%emt 0:06:28]} Bd7 {[%emt 0:11:06]} 19. Re5 {[%emt 0:10:14]} Rfe8 {[%emt 0:05:08]} 20. Rde1 {[%emt 0:05:43]} Kf8 {[%emt 0:04:11]} 21. Nd2 {[%emt 0:03:00]} Nfd5 {[%emt 0:05:46]} 22. Nde4 {[%emt 0:14:11]} f6 {[%emt 0:02:55]} 23. Rxe8+ {[%emt 0:02:21]} Rxe8 {[%emt 0:00:32]} 24. Kf1 {[%emt 0:00:03]} Nxc3 {[%emt 0:01:12]} 25. bxc3 {[%emt 0:01:15]} Bf5 {[%emt 0:15:30]} 26. Nc5 {[%emt 0:02:09]} Bc8 {[%emt 0:00:31]} 27. c4 {[%emt 0:02:34]} Nd7 {[%emt 0:01:31]} 28. Ne6+ {[%emt 0:00:43]} Kg8 {[%emt 0:02:08]} 29. c5 {[%emt 0:00:07]} Kh8 {[%emt 0:00:35]} 30. Nc7 {[%emt 0:10:20]} Rxe1+ {[%emt 0:00:12]} 31. Kxe1 {[%emt 0:00:01]} Nf8 {[%emt 0:01:39]} 32. Kd2 {[%emt 0:03:15]} Bd7 {[%emt 0:00:40]} 33. Kc3 {[%emt 0:00:44]} Kg7 {[%emt 0:00:27]} 34. d5 {[%emt 0:00:51]} f5 {[%emt 0:02:03]} 35. d6 {[%emt 0:01:17]} Kf6 {[%emt 0:00:09]} 36. Kd4 {[%emt 0:00:38]} h5 {[%emt 0:00:56]} (36... f4 $11) 37. f4 {[%emt 0:02:32]} gxf4 {[%emt 0:00:47]} 38. gxf4 {[%emt 0:00:03]} Ng6 {[%emt 0:00:06]} 39. Ke3 {[%emt 0:00:45]} Nh4 {[%emt 0:01:13]} 40. Kf2 {[%emt 0:01:19]} ({White should play} 40. g3 Ng6 41. Na8) 40... Ng6 {[%emt 0:00:13]} 41. Kg3 {[%emt 0:30:07]} h4+ {[%emt 0:30:29]} 42. Kf3 {[%emt 0:00:07]} Nf8 {[%emt 0:00:09]} 43. Ke3 {[%emt 0:02:35]} Nh7 {[%emt 0:01:01]} 44. Na8 {[%emt 0:01:10]} Be6 {[%emt 0:00:46]} 45. Bxe6 {[%emt 0:00:57]} Kxe6 {[%emt 0:00:01]} 46. Nb6 {[%emt 0:00:07]} Nf6 {[%emt 0:00:16]} 47. Nc4 {[%emt 0:00:36]} Nd5+ $1 {[%emt 0:02:40]} 48. Kf3 {[%emt 0:00:09]} Nc3 {[%emt 0:00:34]} 49. Nxa5 {[%emt 0:00:10]} Nxa4 {[%emt 0:01:01]} 50. Nxb7 {[%emt 0:00:03]} Kd7 {[%emt 0:00:13]} 51. Ke3 {[%emt 0:01:05]} Kc8 {[%emt 0:00:25]} 52. Na5 {[%emt 0:00:12]} Nxc5 {[%emt 0:00:07]} 53. Nxc6 {[%emt 0:00:06]} Kd7 {[%emt 0:00:04]} 54. Nd4 {[%emt 0:00:19]} h3 {[%emt 0:00:24]} 55. gxh3 {[%emt 0:00:12]} Kxd6 {[%emt 0:00:03]} 56. Nxf5+ {[%emt 0:00:06]} Ke6 {[%emt 0:00:08]} 57. Nd4+ {[%emt 0:00:49]} Kf6 {[%emt 0:00:02]} 58. Kf3 {[%emt 0:00:47]} Nd7 {[%emt 0:00:20]} 59. h4 {[%emt 0:01:56]} Kg6 {[%emt 0:00:10]} 60. Ke4 {[%emt 0:00:14]} Kh5 {[%emt 0:00:24]} 61. Nf3 {[%emt 0:00:18]} Nf6+ {[%emt 0:01:07]} 62. Ke5 $11 {[%emt 0:01:16]} Ng4+ {[%emt 0:00:42]} 63. Ke6 {[%emt 0:01:22]} Nh6 {[%emt 0:01:14]} 64. Kf6 {[%emt 0:00:25]} Kg4 {[%emt 0:01:14]} 65. Kg6 {[%emt 0:00:06]} Nf5 {[%emt 0:01:18]} 66. h5 {[%emt 0:00:35]} Kxf4 {[%emt 0:00:11]} 67. Kf6 {[%emt 0:00:38]} Kg4 {[%emt 0:00:43]} 68. Ne5+ {[%emt 0:00:19]} Kxh5 {[%emt 0:00:07]} 69. Kxf5 {[%emt 0:00:03]} 1/2-1/2